bitfinex-derivatives/quotes_BTCF0:USTF0_20251204
["timestamp","ask_amount","ask_price","bid_price","bid_amount"]
[1764850469181,0.00226869,93046.0,93045.0,0.17440819]
[1764850469583,0.02523482,93046.0,93045.0,0.17440819]
[1764850470088,0.00226869,93046.0,93045.0,0.17440819]
[1764850474488,0.00226869,93046.0,93045.0,0.53520819]
[1764850478896,0.00226869,93046.0,93045.0,0.17440819]
[1764850479091,0.00226869,93046.0,93045.0,0.53520819]
[1764850487207,0.05718,93041.0,93040.0,0.0874294]
[1764850487507,0.05718,93036.0,93035.0,0.05929]
[1764850487700,0.08016163,93036.0,93035.0,0.05929]
[1764850489010,0.08116163,93036.0,93035.0,0.05929]
[1764850490311,0.05718,93029.0,93023.0,0.0580194]
[1764850490509,0.05718,93022.0,93020.0,0.0580194]
[1764850490716,0.06679,93015.0,93014.0,0.01230064]
[1764850490915,0.05718,93008.0,93000.0,0.01777]
[1764850491209,0.0801471,93008.0,93007.0,0.0622]
[1764850491514,0.0801471,93008.0,93007.0,0.0744094]
[1764850492115,0.05718,93008.0,93007.0,0.0744094]
[1764850492305,0.05818,93008.0,93007.0,0.0744094]
[1764850493099,0.05818,93008.0,93007.0,0.0774094]
[1764850493712,0.05818,93008.0,93007.0,0.0764094]
[1764850493914,0.05718,93008.0,93007.0,0.0764094]
[1764850496213,0.05718,93008.0,93007.0,0.0754094]
[1764850496916,0.05718,93008.0,93007.0,0.0764094]
[1764850498409,0.05718,93008.0,93007.0,0.0754094]
[1764850498917,0.05718,93008.0,93007.0,0.0744094]
[1764850499112,0.05718,93008.0,93007.0,0.0774094]
[1764850502118,0.05718,93008.0,93007.0,0.0744094]
[1764850502321,0.05718,93008.0,93007.0,0.0774094]
[1764850502715,0.05718,93008.0,93007.0,0.0744094]
[1764850502916,0.05718,93008.0,93007.0,0.0774094]
[1764850503316,0.05718,93008.0,93007.0,0.0744094]
[1764850503519,0.05718,93008.0,93007.0,0.0774094]
[1764850504820,0.3608,93015.0,93014.0,0.05853]
[1764850505219,0.38835,93015.0,93014.0,0.05853]
[1764850505419,0.3608,93015.0,93014.0,0.05853]
[1764850505625,0.38835,93015.0,93014.0,0.05853]
[1764850506423,0.38835,93015.0,93014.0,0.06153]
[1764850506629,0.3608,93015.0,93014.0,0.06153]
[1764850506820,0.00016118,93017.0,93016.0,0.07496]
[1764850508021,0.0842906,93037.0,93036.0,0.05853]
[1764850508227,0.5829306,93037.0,93036.0,0.05853]
[1764850508830,0.0842906,93037.0,93036.0,0.05853]
[1764850509033,0.5829306,93037.0,93036.0,0.05853]
[1764850509937,0.5839306,93037.0,93036.0,0.05853]
[1764850511034,0.55706,93037.0,93036.0,0.05853]
[1764850511241,0.52719,93037.0,93036.0,0.05853]
[1764850512135,0.55706,93037.0,93036.0,0.05853]
[1764850517727,0.52719,93037.0,93036.0,0.05853]
[1764850517934,0.001,93037.0,93036.0,0.05853]
[1764850519940,0.02855,93037.0,93036.0,0.05853]
[1764850520245,0.05842,93037.0,93036.0,0.05853]
[1764850521935,0.02855,93037.0,93036.0,0.05853]
[1764850522245,0.05768869,93046.0,93045.0,0.05853]
[1764850522446,0.05768869,93046.0,93045.0,0.0692766]
[1764850522945,0.00026869,93046.0,93045.0,0.0692766]
[1764850523248,0.00226869,93046.0,93045.0,0.0692766]
[1764850526747,0.02981869,93046.0,93045.0,0.0692766]
[1764850527846,0.00226869,93046.0,93045.0,0.0692766]
[1764850529850,0.02981869,93046.0,93045.0,0.0692766]
[1764850530039,0.00226869,93046.0,93045.0,0.0692766]
[1764850532043,0.05968869,93046.0,93045.0,0.0692766]
[1764850532350,0.00226869,93046.0,93045.0,0.0692766]
[1764850532647,0.02981869,93046.0,93045.0,0.0692766]
[1764850533440,0.00226869,93046.0,93045.0,0.0692766]
[1764850537852,0.05931869,93046.0,93045.0,0.0692766]
[1764850538058,0.05931869,93046.0,93045.0,0.05853]
[1764850538254,0.08226122,93046.0,93045.0,0.05853]
[1764850540651,0.08226122,93046.0,93045.0,0.0869766]
[1764850544361,0.00226869,93046.0,93045.0,0.0869766]
[1764850544857,0.05743,93066.0,93065.0,0.07517]
[1764850545058,0.08042631,93066.0,93065.0,0.07517]
[1764850546056,0.08342631,93066.0,93065.0,0.07517]
[1764850546252,0.02599631,93066.0,93065.0,0.07517]
[1764850546460,0.05557631,93066.0,93065.0,0.07517]
[1764850546958,0.08342631,93066.0,93065.0,0.08676122]
[1764850550051,0.08342631,93066.0,93065.0,0.06894122]
[1764850550454,0.08342631,93066.0,93065.0,0.08676122]
[1764850556265,0.08342631,93066.0,93065.0,0.06894122]
[1764850557651,0.08342631,93066.0,93065.0,0.03897122]
[1764850557862,0.05743,93057.0,93056.0,0.02754123]
[1764850558169,0.44122631,93057.0,93056.0,0.06919112]
[1764850559666,0.44422631,93057.0,93056.0,0.06919112]
[1764850560466,0.44422631,93057.0,93056.0,0.05751123]
[1764850560663,0.44422631,93057.0,93056.0,0.00016123]
[1764850560964,0.47109691,93057.0,93056.0,0.00016123]
[1764850561266,0.05743,93041.0,93040.0,0.07517]
[1764850561462,0.08091769,93041.0,93040.0,0.07517]
[1764850562063,0.08091769,93041.0,93040.0,0.08694145]
[1764850562470,0.08191769,93041.0,93040.0,0.08694145]
[1764850569359,0.05843,93041.0,93040.0,0.08694145]
[1764850569868,0.08189672,93041.0,93040.0,0.08694145]
[1764850570470,0.001,93041.0,93040.0,0.09768855]
[1764850570666,0.20932643,93050.0,93049.0,0.05706]
[1764850570871,0.08023604,93050.0,93049.0,0.05706]
[1764850571261,0.05677123,93050.0,93049.0,0.05706]
[1764850571967,0.00016123,93050.0,93049.0,0.05706]
[1764850572168,0.00216123,93050.0,93049.0,0.05706]
[1764850573870,0.05877123,93050.0,93049.0,0.05706]
[1764850574278,0.00216123,93050.0,93049.0,0.05706]
[1764850575380,0.0268706,93057.0,93056.0,0.05706]
[1764850576378,0.0288706,93057.0,93056.0,0.0678053]
[1764850577075,0.05861,93057.0,93056.0,0.05706]
[1764850577578,0.08328677,93057.0,93056.0,0.05706]
[1764850578170,0.05861,93057.0,93056.0,0.0678053]
[1764850578369,0.02995,93057.0,93056.0,0.0678053]
[1764850579379,0.05861,93057.0,93056.0,0.0678053]
[1764850579886,0.05861,93057.0,93056.0,0.05706]
[1764850580580,0.08328985,93057.0,93056.0,0.05706]
[1764850587778,0.05462985,93057.0,93056.0,0.05706]
[1764850587985,0.02667985,93057.0,93056.0,0.05706]
[1764850588878,0.05462985,93057.0,93056.0,0.05706]
[1764850590489,0.02995,93057.0,93056.0,0.05706]
[1764850590780,0.02895,93057.0,93056.0,0.0678053]
[1764850591191,0.001,93057.0,93056.0,0.0678053]
[1764850592090,0.05761,93057.0,93056.0,0.0678053]
[1764850592985,0.02895,93057.0,93056.0,0.0678053]
[1764850593190,0.001,93057.0,93056.0,0.0678053]
[1764850595892,0.41945,93079.0,93078.0,0.05837]
[1764850596083,0.44413935,93079.0,93078.0,0.05837]
[1764850597395,0.05865,93071.0,93070.0,0.05837]
[1764850597586,0.44413935,93071.0,93070.0,0.05837]
[1764850598689,0.44613935,93071.0,93070.0,0.05837]
[1764850599592,0.44613935,93071.0,93070.0,0.02853]
[1764850600896,0.05865,93070.0,93069.0,0.00016123]
[1764850601088,0.08333935,93070.0,93069.0,0.00016123]
[1764850601790,0.08333935,93070.0,93069.0,0.02869123]
[1764850604902,0.08533935,93070.0,93069.0,0.02869123]
[1764850605597,0.08533935,93070.0,93069.0,0.05692123]
[1764850613608,0.08533935,93070.0,93069.0,0.00016123]
[1764850613901,0.08533935,93070.0,93052.0,0.02711]
[1764850613902,0.05716,93053.0,93052.0,0.02711]
[1764850614107,0.05716,93049.0,93048.0,0.07261]
[1764850614310,0.08184935,93049.0,93048.0,0.05534]
[1764850615599,0.08184935,93049.0,93048.0,0.02711]
[1764850615793,0.08184935,93049.0,93048.0,0.05534]
[1764850622314,0.05716,93041.0,93040.0,0.11524]
[1764850622508,0.94108935,93041.0,93040.0,0.11524]
[1764850622709,0.94108935,93041.0,93039.0,0.00016123]
[1764850622710,0.06807,93040.0,93039.0,0.00016123]
[1764850623014,0.05716,93026.0,93025.0,0.07261]
[1764850623713,0.05716,93026.0,93025.0,0.08412042]
[1764850624405,0.49852,93027.0,93026.0,0.0649688]
[1764850626313,0.02810123,93035.0,93034.0,0.0649678]
[1764850626619,0.52666123,93035.0,93034.0,0.0649678]
[1764850626816,0.55415123,93035.0,93034.0,0.0649678]
[1764850627216,0.55415123,93035.0,93034.0,0.05422]
[1764850628028,0.57886778,93035.0,93034.0,0.05422]
[1764850628215,0.55415123,93035.0,93034.0,0.05622]
[1764850628515,0.57886528,93035.0,93034.0,0.002]
[1764850629114,0.05543,93026.0,93025.0,0.08300042]
[1764850630221,0.3608,93029.0,93010.0,0.01753]
[1764850630222,0.05543,93021.0,93020.0,0.43229]
[1764850630527,0.06634,93020.0,93012.0,0.01132318]
[1764850630709,0.05543,93017.0,93010.0,0.01753]
[1764850631124,0.05543,93017.0,93016.0,0.05438123]
[1764850631924,0.05643,93017.0,93016.0,0.05438123]
[1764850632315,0.001,93017.0,93016.0,0.05438123]
[1764850632622,0.49864,93017.0,93016.0,0.05438123]
[1764850632923,0.3608,93029.0,93028.0,0.0649685]
[1764850633129,0.85952,93029.0,93028.0,0.0649685]
[1764850633515,0.88746,93029.0,93028.0,0.0649685]
[1764850633916,0.91495,93029.0,93028.0,0.0649685]
[1764850635523,0.91595,93029.0,93028.0,0.0649685]
[1764850636424,0.88846,93029.0,93028.0,0.0649685]
[1764850636823,0.86052,93029.0,93028.0,0.0649685]
[1764850637527,0.91595,93029.0,93028.0,0.05422]
[1764850642429,0.94085163,93029.0,93028.0,0.05422]
[1764850643523,0.05543,93025.0,93024.0,0.02721]
[1764850643732,0.05543,93023.0,93022.0,0.14237]
[1764850644228,0.05543,93017.0,93006.0,0.0002688]
[1764850644527,0.93990721,93017.0,93006.0,0.0002688]
[1764850645426,0.93990721,93017.0,93006.0,0.01201668]
[1764850646224,0.05543,93008.0,93007.0,0.03012]
[1764850646425,0.09109801,93008.0,93007.0,0.03012]
[1764850646625,0.09109801,93008.0,93007.0,0.05713]
[1764850647818,0.09109801,93008.0,93007.0,0.00291]
[1764850648133,0.45189659,93008.0,93007.0,0.00291]
[1764850650429,0.95069659,93008.0,93007.0,0.00291]
[1764850650827,0.95069659,93008.0,93006.0,0.0002688]
[1764850651025,0.0661814,93003.0,93002.0,0.08817]
[1764850651329,0.0661814,93003.0,92998.0,0.00016123]
[1764850651330,0.0661819,92999.0,92998.0,0.00016123]
[1764850651634,0.58989769,92999.0,92998.0,0.05438123]
[1764850652131,0.58989769,92999.0,92998.0,0.02737123]
[1764850652529,0.58989769,92999.0,92998.0,0.00016123]
[1764850652728,0.58989769,92999.0,92998.0,0.05438123]
[1764850652921,0.58989769,92999.0,92998.0,0.03037123]
[1764850653426,0.58989769,92999.0,92998.0,0.00316123]
[1764850657132,0.0677529,92990.0,92989.0,0.08818]
[1764850657434,0.95242869,92990.0,92989.0,0.08818]
[1764850657632,0.057,92977.0,92976.0,0.07596]
[1764850657837,0.55596,92977.0,92976.0,0.07596]
[1764850658020,0.55596,92977.0,92976.0,0.08758516]
[1764850658219,0.55606095,92977.0,92976.0,0.08758516]
[1764850659535,0.55606095,92977.0,92976.0,0.09058516]
[1764850659742,0.55606095,92977.0,92976.0,0.10058516]
[1764850661341,0.00010095,92977.0,92976.0,0.10058516]
[1764850662239,9.5e-07,92977.0,92976.0,0.10058516]
[1764850662450,9.5e-07,92977.0,92976.0,0.50058516]
[1764850663629,2.28e-06,92986.0,92985.0,0.05731]
[1764850663938,2.28e-06,92986.0,92985.0,0.4288635]
[1764850664834,2.28e-06,92986.0,92985.0,0.4298635]
[1764850665539,2.28e-06,92986.0,92985.0,0.4288635]
[1764850665742,2.28e-06,92986.0,92985.0,0.4338635]
[1764850666245,2.28e-06,92986.0,92985.0,0.4298635]
[1764850666444,2.28e-06,92986.0,92985.0,0.4338635]
[1764850667144,2.28e-06,92986.0,92985.0,0.4298635]
[1764850667347,2.28e-06,92986.0,92985.0,0.4338635]
[1764850667537,2.28e-06,92986.0,92985.0,0.4328635]
[1764850667740,2.28e-06,92986.0,92985.0,0.4338635]
[1764850667942,0.21054265,93020.0,93008.0,0.0680608]
[1764850668145,0.0107505,93011.0,93008.0,0.0680608]
[1764850668339,0.02492953,93009.0,93008.0,0.4288608]
[1764850668645,0.0668002,93014.0,93013.0,0.0680603]
[1764850668833,0.09172745,93014.0,93013.0,0.0680603]
[1764850669040,0.02492725,93014.0,93013.0,0.0680603]
[1764850669241,0.0390798,93018.0,93017.0,0.0680598]
[1764850669450,0.09156431,93018.0,93017.0,0.0680598]
[1764850669848,0.02476451,93018.0,93017.0,0.0680598]
[1764850670549,0.05309451,93018.0,93017.0,0.0680598]
[1764850670751,0.03033,93018.0,93017.0,0.4288598]
[1764850671241,0.05805,93018.0,93017.0,0.4288598]
[1764850672242,0.08282799,93018.0,93017.0,0.4288598]
[1764850673846,0.08282799,93018.0,93017.0,0.05731]
[1764850674045,0.05605,93013.0,93012.0,0.075]
[1764850675446,0.02833,93013.0,93012.0,0.075]
[1764850675749,0.002,93018.0,93017.0,0.0680598]
[1764850676047,0.05605,93022.0,93021.0,0.0680593]
[1764850676252,0.08083293,93022.0,93021.0,0.0680593]
[1764850677946,0.08183293,93022.0,93021.0,0.0680593]
[1764850678649,0.08183293,93022.0,93008.0,0.05731]
[1764850678650,0.05605,93009.0,93008.0,0.05731]
[1764850680851,0.3608,93013.0,93004.0,0.01091253]
[1764850680852,0.05605,93005.0,93004.0,0.00016133]
[1764850681049,0.4276012,93005.0,93004.0,0.00016133]
[1764850681250,0.4276012,93005.0,93004.0,0.02966133]
[1764850681452,0.4276012,93005.0,93004.0,0.00016133]
[1764850681647,0.45237763,93005.0,93004.0,0.00016133]
[1764850682949,0.45237917,93005.0,93004.0,0.00016133]
[1764850686942,0.50277917,93005.0,93004.0,0.00016133]
[1764850693053,0.50280526,93005.0,93004.0,0.00016133]
[1764850693254,0.50280526,93005.0,93004.0,0.02823133]
[1764850693963,0.50280526,93005.0,93004.0,0.05534133]
[1764850694663,0.50280526,93005.0,93004.0,0.02823133]
[1764850696566,0.50280526,93005.0,93004.0,0.05534133]
[1764850697154,0.50280526,93005.0,93004.0,0.02823133]
[1764850697362,0.50280526,93005.0,93004.0,0.00016133]
[1764850698467,0.50280526,93005.0,93004.0,0.02823133]
[1764850700170,0.50280526,93005.0,93004.0,0.00016133]
[1764850700561,0.50280526,93005.0,93004.0,0.02823133]
[1764850701055,0.50271793,93005.0,93004.0,0.05534133]
[1764850701460,0.13116673,93005.0,93004.0,0.05534133]
[1764850702769,0.0504,93005.0,93004.0,0.05534133]
[1764850703364,0.0751237,93005.0,93004.0,0.05534133]
[1764850703869,0.0504,93005.0,93004.0,0.05534133]
[1764850704774,0.5554,93012.0,93011.0,0.05518]
[1764850705067,0.58012565,93012.0,93011.0,0.05518]
[1764850706667,0.58112565,93012.0,93011.0,0.05518]
[1764850708872,0.59187605,93012.0,93011.0,0.05518]
[1764850709769,0.59187605,93012.0,93011.0,0.02807]
[1764850709971,0.59187605,93012.0,93007.0,0.05518]
[1764850709972,0.0671108,93008.0,93007.0,0.05518]
[1764850710166,0.09183645,93008.0,93007.0,0.05518]
[1764850718470,0.09183645,93008.0,93007.0,0.02807]
[1764850718673,0.0684612,93005.0,93004.0,0.05882133]
[1764850718865,0.45398685,93005.0,93004.0,0.05882133]
[1764850719275,0.09318685,93005.0,93004.0,0.05882133]
[1764850722374,0.09318685,93005.0,93004.0,0.00016133]
[1764850722570,0.15527685,93005.0,93004.0,0.00016133]
[1764850722768,0.55607685,93005.0,93000.0,0.08817]
[1764850722968,0.0698216,93001.0,93000.0,0.08817]
[1764850723174,0.59358725,93001.0,93000.0,0.08817]
[1764850725870,0.59358725,93001.0,93000.0,0.08917]
[1764850727979,0.59358725,93001.0,93000.0,0.11652]
[1764850728172,0.59358725,93001.0,93000.0,0.14629]
[1764850728578,0.64398725,93001.0,93000.0,0.14629]
[1764850730484,0.64398725,93001.0,93000.0,0.16341]
[1764850732083,0.64398725,93001.0,93000.0,0.08917]
[1764850735185,0.0698227,92992.0,92991.0,0.00016133]
[1764850735385,0.95434835,92992.0,92991.0,0.05728133]
[1764850736181,0.95434835,92992.0,92991.0,0.05828133]
[1764850736882,0.58279565,92992.0,92991.0,0.06128133]
[1764850737883,0.58279565,92992.0,92991.0,0.00416133]
[1764850740188,0.58269199,92992.0,92991.0,0.00416133]
[1764850740388,0.63309199,92992.0,92991.0,0.00416133]
[1764850741084,0.63309199,92992.0,92991.0,0.03151133]
[1764850741282,0.63309199,92992.0,92991.0,0.06128133]
[1764850745489,0.07502199,92992.0,92991.0,0.06128133]
[1764850745682,0.0504,92992.0,92991.0,0.06128133]
[1764850746283,0.5097521,92997.0,92991.0,0.06128133]
[1764850746489,0.5674421,92997.0,92996.0,0.05742]
[1764850746684,0.59207783,92997.0,92996.0,0.02881]
[1764850746886,0.59207783,92997.0,92996.0,0.05742]
[1764850748186,0.59207783,92997.0,92996.0,0.05842]
[1764850748789,0.59207783,92997.0,92996.0,0.001]
[1764850748990,0.59207783,92997.0,92996.0,0.05842]
[1764850749597,0.59207783,92997.0,92996.0,0.05942]
[1764850755799,0.59207783,92997.0,92996.0,0.03081]
[1764850756097,0.63207783,92997.0,92996.0,0.002]
[1764850756291,0.0684427,92992.0,92991.0,0.00016133]
[1764850756488,0.09307843,92992.0,92991.0,0.00016133]
[1764850757498,0.09307843,92992.0,92991.0,0.00116133]
[1764850757698,0.09307843,92992.0,92991.0,0.00316133]
[1764850758198,0.14347843,92992.0,92991.0,0.00316133]
[1764850759603,0.0684436,92984.0,92976.0,0.01162516]
[1764850759790,1.00335933,92984.0,92976.0,0.01162516]
[1764850760009,0.05769,92975.0,92967.0,0.0107556]
[1764850760193,0.58140573,92975.0,92967.0,0.0107556]
[1764850760394,0.58140573,92975.0,92974.0,0.41822]
[1764850762092,0.58140573,92975.0,92974.0,0.42122]
[1764850762300,0.58140573,92975.0,92974.0,0.3638]
[1764850762501,0.58140573,92975.0,92974.0,0.42122]
[1764850763406,0.58140573,92975.0,92974.0,0.41822]
[1764850763599,0.58140573,92975.0,92974.0,0.3608]
[1764850763898,0.0684456,92967.0,92966.0,0.05768892]
[1764850764105,0.5676056,92967.0,92966.0,0.05768892]
[1764850764403,0.95300165,92967.0,92966.0,0.04030466]
[1764850764705,0.89531165,92967.0,92965.0,0.00016133]
[1764850764903,0.08228605,92966.0,92965.0,0.00016133]
[1764850766396,0.08228605,92966.0,92965.0,0.00116133]
[1764850768098,0.08228605,92966.0,92965.0,0.02997133]
[1764850768407,0.08228605,92966.0,92965.0,0.05858133]
[1764850768610,0.08228605,92966.0,92965.0,0.00116133]
[1764850769406,0.08228605,92966.0,92965.0,0.05858133]
[1764850770906,0.58160605,92966.0,92965.0,0.07489133]
[1764850771101,0.55701,92966.0,92965.0,0.07489133]
[1764850772610,0.0504,92974.0,92965.0,0.07489133]
[1764850772611,0.07998,92974.0,92973.0,0.0681749]
[1764850772812,0.63202878,92974.0,92973.0,0.0681749]
[1764850773111,0.55709,92974.0,92973.0,0.0681749]
[1764850774303,0.55909,92974.0,92973.0,0.05742]
[1764850776108,0.5698448,92974.0,92973.0,0.05742]
[1764850778207,0.53098,92974.0,92973.0,0.05742]
[1764850778807,0.56001,92974.0,92973.0,0.05742]
[1764850779399,0.56001,92974.0,92973.0,0.02881]
[1764850779604,0.56001,92974.0,92960.0,0.04666262]
[1764850779605,0.0669457,92966.0,92965.0,0.07336133]
[1764850780209,0.0669457,92966.0,92965.0,0.00016133]
[1764850780613,0.0669463,92961.0,92960.0,0.03035262]
[1764850780813,0.5663863,92961.0,92960.0,0.03035262]
[1764850781008,0.5663863,92961.0,92960.0,0.01101262]
[1764850781206,0.59094915,92961.0,92960.0,0.0298]
[1764850781406,0.59094915,92961.0,92960.0,0.05689]
[1764850781807,0.59094915,92961.0,92960.0,0.06900872]
[1764850782818,0.59094915,92961.0,92960.0,0.05889]
[1764850783118,0.58019285,92961.0,92960.0,0.05889]
[1764850783309,0.58019285,92961.0,92960.0,0.0698226]
[1764850786520,0.58019285,92961.0,92960.0,0.0129326]
[1764850786722,0.58019285,92961.0,92960.0,0.0715926]
[1764850787206,0.58019285,92961.0,92960.0,0.0417926]
[1764850787716,0.58019285,92961.0,92960.0,0.0129326]
[1764850790423,0.58019285,92961.0,92960.0,0.002]
[1764850790727,0.58019285,92961.0,92960.0,0.06066]
[1764850793322,0.59094915,92961.0,92960.0,0.002]
[1764850794921,0.95174915,92961.0,92960.0,0.002]
[1764850796517,0.95174915,92961.0,92960.0,0.06066]
[1764850797415,0.58019285,92961.0,92960.0,0.002]
[1764850799724,0.63059285,92961.0,92960.0,0.002]
[1764850807434,0.0675467,92957.0,92956.0,0.01934]
[1764850807635,0.09210955,92957.0,92956.0,0.01934]
[1764850807824,0.14250955,92957.0,92956.0,0.01844095]
[1764850808132,0.0675473,92952.0,92951.0,0.00010764]
[1764850808332,0.59147015,92952.0,92951.0,0.00010764]
[1764850809429,0.59147015,92952.0,92951.0,0.00110764]
[1764850810229,0.59147015,92952.0,92951.0,0.02958764]
[1764850810535,0.59147015,92952.0,92951.0,0.05844764]
[1764850810729,0.58071285,92952.0,92951.0,0.05844764]
[1764850811931,0.08135285,92952.0,92951.0,0.05844764]
[1764850812131,0.58071285,92952.0,92951.0,0.05844764]
[1764850814032,0.58071285,92952.0,92951.0,0.00110764]
[1764850815335,0.58071285,92952.0,92944.0,0.01100842]
[1764850815336,0.0675481,92945.0,92944.0,0.01100842]
[1764850815534,0.05679,92943.0,92942.0,0.01845]
[1764850815732,0.08135285,92943.0,92942.0,0.07579]
[1764850815931,0.08135285,92943.0,92942.0,0.02848]
[1764850816132,0.08135285,92943.0,92942.0,0.01132003]
[1764850816537,0.08135285,92943.0,92942.0,0.03980003]
[1764850816745,0.08135285,92943.0,92942.0,0.03048]
[1764850817138,0.08135285,92943.0,92942.0,0.002]
[1764850817844,0.08135285,92943.0,92942.0,0.05934]
[1764850818342,0.08135285,92943.0,92942.0,0.06034]
[1764850818842,0.58071285,92943.0,92942.0,0.06034]
[1764850825439,0.58071285,92943.0,92942.0,0.003]
[1764850825851,0.94151285,92943.0,92942.0,0.003]
[1764850826042,0.94151285,92943.0,92942.0,0.03148]
[1764850826248,0.94151285,92943.0,92942.0,0.06034]
[1764850827444,0.94151285,92943.0,92942.0,0.03148]
[1764850827648,0.94151285,92943.0,92942.0,0.003]
[1764850828943,0.94162869,92943.0,92942.0,0.003]
[1764850829343,0.94162869,92943.0,92942.0,0.001]
[1764850830144,1.04202869,92943.0,92942.0,0.001]
[1764850830346,0.0675493,92935.0,92934.0,0.01845]
[1764850830646,0.45302799,92935.0,92934.0,0.01845]
[1764850830950,0.06755,92929.0,92928.0,0.00010744]
[1764850831148,0.59154869,92929.0,92928.0,0.00010744]
[1764850831849,0.05679,92914.0,92898.0,0.10451585]
[1764850832048,0.59159146,92914.0,92913.0,0.05734]
[1764850832945,0.5916989,92914.0,92913.0,0.06434]
[1764850833143,0.5809372,92914.0,92913.0,0.06434]
[1764850834251,0.5809372,92914.0,92913.0,0.008]
[1764850834443,0.5809372,92914.0,92913.0,0.06483]
[1764850834845,0.5809372,92914.0,92913.0,0.05983]
[1764850836245,0.55625744,92914.0,92913.0,0.05983]
[1764850836555,0.55625744,92914.0,92913.0,0.003]
[1764850836852,0.55625744,92914.0,92913.0,0.03113]
[1764850837447,0.58090165,92914.0,92913.0,0.05983]
[1764850837744,0.58090165,92914.0,92913.0,0.003]
[1764850840854,0.08154165,92914.0,92913.0,0.05983]
[1764850841150,0.52419165,92914.0,92913.0,0.05983]
[1764850841356,0.02475165,92914.0,92913.0,0.05983]
[1764850841557,0.49954744,92914.0,92913.0,0.42063]
[1764850841947,0.00010744,92914.0,92913.0,0.42063]
[1764850845454,0.05611744,92914.0,92913.0,0.42063]
[1764850846054,0.05611744,92914.0,92913.0,0.05983]
[1764850849761,0.05611744,92914.0,92913.0,0.003]
[1764850850068,0.08098164,92914.0,92913.0,0.003]
[1764850853059,0.08098164,92914.0,92913.0,0.06002]
[1764850853861,0.58042164,92914.0,92913.0,0.06002]
[1764850854961,0.02497164,92914.0,92913.0,0.06002]
[1764850855260,0.52441164,92914.0,92913.0,0.06002]
[1764850855860,0.58042164,92914.0,92913.0,0.06002]
[1764850856865,0.58042164,92914.0,92913.0,0.003]
[1764850857164,0.58042164,92914.0,92913.0,0.03018]
[1764850857361,0.58042164,92914.0,92913.0,0.003]
[1764850858968,0.58042164,92914.0,92913.0,0.06002]
[1764850862665,0.59118334,92914.0,92913.0,0.003]
[1764850863057,0.05601,92899.0,92898.0,0.07347]
[1764850863265,0.5802742,92899.0,92898.0,0.02718]
[1764850863464,0.5802742,92899.0,92898.0,0.07326]
[1764850864163,0.5802742,92899.0,92898.0,0.07526]
[1764850864870,0.5802742,92899.0,92898.0,0.08226]
[1764850865171,0.5802742,92899.0,92898.0,0.009]
[1764850865374,0.5802742,92899.0,92895.0,0.01849]
[1764850865375,0.05793,92896.0,92895.0,0.04717]
[1764850865578,0.0827942,92896.0,92895.0,0.07705]
[1764850866077,0.5823542,92896.0,92895.0,0.07705]
[1764850867173,0.5823542,92896.0,92895.0,0.07805]
[1764850867864,0.5833542,92896.0,92895.0,0.07805]
[1764850870979,0.9945542,92896.0,92895.0,0.01949]
[1764850879473,0.9945542,92896.0,92895.0,0.04817]
[1764850879671,0.9945542,92896.0,92895.0,0.07805]
[1764850881386,0.9945542,92896.0,92895.0,0.01949]
[1764850883475,0.9945542,92896.0,92895.0,0.04817]
[1764850883978,0.9945542,92896.0,92895.0,0.07805]
[1764850884178,0.9946742,92896.0,92895.0,0.07805]
[1764850884578,0.9946742,92896.0,92895.0,0.04817]
[1764850884778,0.9946742,92896.0,92895.0,0.01949]
[1764850885386,0.0107639,92895.0,92886.0,0.00026915]
[1764850885588,0.41873,92887.0,92886.0,0.00026915]
[1764850885776,0.954079,92887.0,92886.0,0.00026915]
[1764850886176,1.00458644,92887.0,92886.0,0.00026915]
[1764850887086,1.00458644,92887.0,92886.0,0.00126915]
[1764850888092,0.50486644,92887.0,92886.0,0.00126915]
[1764850888288,1.00474644,92887.0,92886.0,0.00126915]
[1764850888487,0.50486644,92887.0,92886.0,0.00126915]
[1764850888682,1.00474644,92887.0,92886.0,0.00126915]
[1764850889389,1.00774644,92887.0,92886.0,0.00126915]
[1764850891983,0.0686967,92871.0,92870.0,0.06981084]
[1764850892292,0.59352092,92871.0,92870.0,0.05856]
[1764850892589,0.05793,92868.0,92867.0,0.4301272]
[1764850893390,0.05793,92868.0,92867.0,0.44124786]
[1764850893880,0.05793,92868.0,92867.0,0.43048066]
[1764850894286,0.05793,92868.0,92867.0,0.43248066]
[1764850894889,0.05793,92868.0,92867.0,0.43448066]
[1764850896079,0.05956,92868.0,92867.0,0.43448066]
[1764850896878,0.52992744,92871.0,92870.0,0.05733]
[1764850897079,0.52482153,92871.0,92870.0,0.0680968]
[1764850897395,0.58465153,92871.0,92870.0,0.0680968]
[1764850897987,0.58465153,92871.0,92870.0,0.0690968]
[1764850898194,0.58465153,92871.0,92870.0,0.05833]
[1764850899894,0.58465153,92871.0,92870.0,0.06033]
[1764850900392,0.52482153,92871.0,92870.0,0.0710968]
[1764850900893,0.53558823,92871.0,92870.0,0.0710968]
[1764850901091,0.59541823,92871.0,92870.0,0.0710968]
[1764850901993,0.58465153,92871.0,92870.0,0.0710968]
[1764850902183,0.59541823,92871.0,92870.0,0.0710968]
[1764850903085,0.59541823,92871.0,92870.0,0.06033]
[1764850904293,0.59541823,92871.0,92870.0,0.003]
[1764850904597,0.95621823,92871.0,92870.0,0.003]
[1764850905483,0.95621823,92871.0,92870.0,0.05982]
[1764850917897,0.95621823,92871.0,92870.0,0.05782]
[1764850918103,0.96321823,92871.0,92870.0,0.02989]
[1764850918704,0.96321823,92871.0,92870.0,0.05782]
[1764850919202,0.96321823,92871.0,92870.0,0.05682]
[1764850919400,0.96421823,92871.0,92870.0,0.05682]
[1764850919996,0.95621823,92871.0,92870.0,0.05682]
[1764850920207,0.96421823,92871.0,92870.0,0.05682]
[1764850921095,0.0107674,92865.0,92864.0,0.01126291]
[1764850921293,0.5689574,92865.0,92864.0,0.05682]
[1764850921600,0.0692379,92861.0,92860.0,7.986e-05]
[1764850921800,0.069239,92851.0,92850.0,0.07465]
[1764850922004,0.59383309,92851.0,92850.0,0.05682]
[1764850922197,0.0692402,92841.0,92840.0,0.07374]
[1764850922392,0.59417624,92841.0,92840.0,0.08497571]
[1764850922604,0.58340604,92841.0,92840.0,0.08497571]
[1764850922808,0.58353707,92841.0,92840.0,0.08497571]
[1764850922996,0.58353707,92841.0,92840.0,0.09574601]
[1764850923399,0.52506707,92841.0,92840.0,0.09674601]
[1764850923597,0.50009103,92841.0,92840.0,0.45754601]
[1764850925908,0.00013103,92841.0,92840.0,0.45754601]